Cogmind - Beta 15 @@@ ROGUE MODE // 2025.05.19 @ 09:59:13 Player: Cess183 Result: Destroyed by JB-737(R) with Subdweller Beam Cannon Performance ------------- Evolutions (0) 0 Regions Visited (3) 600 Robots Destroyed (46) 230 Value Destroyed (865) 865 Prototype IDs (0) 0 Alien Tech Used (0) 0 Bonus (0) 0 TOTAL SCORE: 1695 Bonus ------- None Cogmind --------- Core Integrity 0/250 Matter 61/300 Energy 100/100 System Corruption 8% Temperature Cool (9) Movement Treading (160) Location -10/Subcaves Parts ------- > --- POWER (1) -------- (None) > --- PROPULSION (2) --- Light Treads > --- UTILITY (2) ------ Medium Storage Unit Targeting Computer > --- WEAPON (2) ------- (None) > --- INVENTORY (10) --- Light Ion Engine Light Ion Engine Light Ion Engine Spiked Treads High-capacity Matter Pod (200) Signal Interpreter Seismic Detector Scrap Shield Scrap Shield Fragment (46) Peak State ------------ > --- POWER ------------ Subdweller Power Source > --- PROPULSION ------- Light Treads Light Treads > --- UTILITY ---------- Medium Storage Unit Targeting Computer > --- WEAPON ----------- Battle Rifle Rocket Launcher > --- INVENTORY -------- Light Ion Engine Light Ion Engine Light Ion Engine Light Treads High-capacity Matter Pod Signal Interpreter Seismic Detector Scrap Shield Scrap Shield Fragment [Rating: 11] Favorites ----------- Power Ion Engine Engine Ion Engine Propulsion Light Treads Treads Light Treads Utility Targeting Computer Device Seismic Detector Storage Small Storage Unit Processor Targeting Computer Weapon Medium Laser Energy Gun Medium Laser Energy Cannon Beam Cannon Ballistic Gun Light Assault Rifle Launcher Rocket Launcher Build | -11 -10 -10 -10 ------- Run | Yrd Mat Min Sub Slots Evolved . | . . . . Power . | . . . . Propulsion . | . . . . Utility . | . . . . Weapon . | . . . . Parts Attached 23 | 7 7 4 5 Power 6 | 1 3 . 2 Engine 6 | 1 3 . 2 Core . | . . . . Reactor . | . . . . Propulsion 6 | 2 2 . 2 Treads 6 | 2 2 . 2 Leg . | . . . . Wheel . | . . . . Hover . | . . . . Flight . | . . . . Utility 4 | 2 1 1 . Device 1 | 1 . . . Storage 2 | 1 . 1 . Processor 1 | . 1 . . Hackware . | . . . . Protection . | . . . . Artifact . | . . . . Weapon 7 | 2 1 3 1 Energy Gun 2 | 2 . . . Energy Cannon 1 | . 1 . . Ballistic Gun 3 | . . 2 1 Ballistic Cannon . | . . . . Launcher 1 | . . 1 . Special Weapon . | . . . . Impact Weapon . | . . . . Slashing Weapon . | . . . . Piercing Weapon . | . . . . Special Melee Weapon . | . . . . Unidentified Prototypes . | . . . . Parts Lost 6 | . 1 . 5 Power 2 | . . . 2 Propulsion 1 | . . . 1 Utility 1 | . 1 . . Weapon 2 | . . . 2 Highest Loss Streak 4 | . 1 . 4 To Critical Strikes . | . . . . Average Backups 6 | 1 6 7 8 Power 2 | . 2 2 3 Propulsion 1 | . 1 2 1 Utility 2 | . 1 2 3 Weapon . | . 1 . . Tool/Special . | . . . . Unused Backups 12 | . . 4 8 Power 5 | . . 3 2 Propulsion 1 | . . . 1 Utility 5 | . . . 5 Weapon 1 | . . 1 . Tool/Special . | . . . . Average Slot Usage (%) 98 | . 99 99 95 Engine 13 | . 14 14 10 Treads 28 | . 28 28 28 Device 2 | . 4 . . Storage 14 | . 14 14 14 Processor 11 | . 8 14 14 Energy Gun 9 | . 17 5 . Energy Cannon 6 | . 10 4 . Ballistic Gun 6 | . . 8 13 Launcher 6 | . . 9 13 Peak Build Rating 11 | 7 7 8 11 Average Rating 7 | 5 6 7 10 On Entrance 5 | . 7 7 8 Naked Turns . | . . . . Heaviest Build 21 | 14 16 20 21 Greatest Support 40 | 40 40 40 40 Greatest Overweight (x) . | . . . . Average Overweight (x) . | . . . . Largest Inventory Capacity 10 | 8 8 10 10 Average Capacity 8 | 7 8 8 10 Most Carried 10 | 3 8 9 10 Average Carried 7 | 1 6 7 9 Final Capacity 10 | 8 8 10 10 Final Carried 10 | 3 8 9 10 Class Distribution -------------------- 100% | Mutant Dominant Class ---------------- Mutant | -10/Materials Mutant | -10/Mines Mutant | -10/Subcaves Resources | -11 -10 -10 -10 ----------- Run | Yrd Mat Min Sub Matter Collected 471 | 270 70 48 83 Remotely . | . . . . Salvage Created 985 | 124 511 98 252 Parts 86 | 10 39 18 19 Haulers Intercepted 1 | . 1 . . Recyclers Shooed . | . . . . Parts Field Recycled . | . . . . Retrieved Matter . | . . . . Parts Self-Destructed 12 | . . . 12 Prevented . | . . . . Kills | -11 -10 -10 -10 ------- Run | Yrd Mat Min Sub Combat Hostiles Destroyed 35 | . 15 12 8 Guns 16 | . 10 5 1 Cannons 5 | . 5 . . AOE 14 | . . 7 7 Classes Destroyed 10 | 2 6 . 2 Worker 1 | . 1 . . Tunneler 4 | 3 . 1 . Hauler 1 | . 1 . . Recycler 1 | 1 . . . Operator 1 | . 1 . . Watcher 3 | . 3 . . Swarmer 21 | . 9 12 . Grunt 6 | . 6 . . Artisan 1 | . . . 1 Subdweller 8 | . . . 8 Best Kill Streak 4 | 2 4 4 2 Combat Bots Only 3 | . 3 3 2 Max Kills in Single Turn 4 | 1 1 4 1 Gunslinging . | . . . . Exploded 3 | . . 3 1 Melee . | . . . . Uniques/NPCs Destroyed . | . . . . Combat | -11 -10 -10 -10 -------- Run | Yrd Mat Min Sub Hostile Shots Fired 129 | . 72 37 20 Missed 25 | . 16 4 5 Hits 104 | . 56 33 15 Projectile 104 | . 56 33 15 AOE 1 | . . . 1 Critical Strikes 2 | . 1 1 . Damage Taken 1571 | . 537 326 708 Core 255 | . 113 44 98 Absorbed by Shields . | . . . . Core Remaining (%) 100 | 100 . . . Volleys Fired 99 | 7 53 17 22 Largest 2 | 2 2 2 2 Hottest 110 | 90 110 110 58 Shots Fired 179 | 14 105 24 36 Gun 109 | 14 64 17 14 Cannon 45 | . 41 4 . Launcher 25 | . . 3 22 Special . | . . . . Kinetic 18 | . . 4 14 Thermal 136 | 14 105 17 . Explosive 25 | . . 3 22 Electromagnetic . | . . . . Robot Hit Streak 8 | 5 8 4 8 Robot Miss Streak 6 | 1 4 6 3 Penetration Max . | . . . . Secondary Targets . | . . . . Shots Hit Robots 97 | 9 59 10 19 Core Hits 59 | 5 26 15 13 Critical Kills . | . . . . Critical Parts Destroyed . | . . . . Critical Strikes 7 | 2 3 1 1 Burn 6 | 2 3 1 . Destroy 1 | . . . 1 Melee Attacks . | . . . . Impact . | . . . . Slashing . | . . . . Piercing . | . . . . Sneak Attacks . | . . . . Combat Hostiles . | . . . . Follow-up Attacks . | . . . . Damage Inflicted 2558 | 123 851 575 1009 Guns 822 | 123 482 89 128 Cannons 422 | . 369 53 . Explosions 1302 | . . 421 881 Melee . | . . . . Ramming 12 | . . 12 . Kinetic 142 | . . 14 128 Thermal 1102 | 123 851 128 . Explosive 1302 | . . 421 881 Electromagnetic . | . . . . Impact . | . . . . Slashing . | . . . . Piercing . | . . . . Highest Corruption 8 | . . . 8 Average Corruption 8 | . . . 8 Corruption Purged . | . . . . Corruption Blocked . | . . . . Effects 1 | . . . 1 Matter Fused 1 | . . . 1 Overload Shots . | . . . . Overflow Damage 42 | . 9 33 . Projectiles 16 | . 9 7 . Explosions 26 | . . 26 . Melee . | . . . . Knockbacks . | . . . . Impact . | . . . . Kinetic . | . . . . Secondary . | . . . . Self-Inflicted Damage 111 | . . 73 38 Shots 5 | . . 2 3 Rammed 5 | . . 5 . Targets Rammed 5 | . . 5 . Kicked . | . . . . Crushed . | . . . . Highest Temperature 438 | 90 438 192 . Average Temperature 105 | 35 121 61 . Received Heat Transfer 225 | . 150 . 75 Effects 2 | . 2 . . Shutdowns 1 | . 1 . . Damage (minor) 1 | . 1 . . Siege Activations . | . . . . Martial Activations . | . . . . Shielding Activations . | . . . . Robots Disrupted . | . . . . Combat Hostiles . | . . . . Robots Corrupted . | . . . . Combat Hostiles . | . . . . Parts Fried . | . . . . Impact Corruptions . | . . . . Robots Melted . | . . . . Combat Hostiles . | . . . . Parts Melted 12 | . 10 2 . Heat Transferred 3272 | 470 2395 407 . Parts Sabotaged . | . . . . Parts Stolen . | . . . . Parts Stripped . | . . . . Power Chain Reactions . | . . . . Alert | -11 -10 -10 -10 ------- Run | Yrd Mat Min Sub Maximum Alert Level . | . . . . Low Security (%) 100 | 100 100 100 . Level 1 . | . . . . Level 2 . | . . . . Level 3 . | . . . . Level 4 . | . . . . Level 5 . | . . . . High Security . | . . . . Max Security . | . . . . Peak Influence 179 | 5 131 179 . Initial 16 | . . 16 . Average 44 | 1 44 49 . Influence Increases 821 | 20 482 319 . Destroy 0b10 Robot/C 540 | . 300 240 . Destroy 0b10 Robot/NC 55 | 20 30 5 . Destroy Leader 118 | . 78 40 . Successful Hack 13 | . 13 . . Disable Machine 45 | . 45 . . Destroy Structure 35 | . 1 34 . Lose Combat Pursuer 15 | . 15 . . Influence Decreases 821 | 20 440 297 64 Entered New Map 60 | . . 26 34 Time Decay 751 | 20 430 271 30 Lost Part 10 | . 10 . . Squads Dispatched 4 | . 4 . . Investigation 1 | . 1 . . Extermination . | . . . . Reinforcement 3 | . 3 . . Assault . | . . . . Garrison . | . . . . Intercept . | . . . . Searches Triggered . | . . . . Construction Impeded . | . . . . Haulers Reinforced . | . . . . Active Scanning Responses . | . . . . Cargo Convoy Interrupts . | . . . . Stealth | -11 -10 -10 -10 --------- Run | Yrd Mat Min Sub Distress Signals . | . . . . Communications Jammed . | . . . . Distress Signals . | . . . . Times Spotted 48 | . 26 12 10 Peak Tracking Total 3 | . 3 3 3 Tactical Retreats 1 | . 1 . . Traps | -11 -10 -10 -10 ------- Run | Yrd Mat Min Sub Traps Triggered . | . . . . Indirectly . | . . . . Trap Hack Attempts . | . . . . Triggered . | . . . . Disarmed . | . . . . Reprogrammed . | . . . . Reused . | . . . . Traps Extracted . | . . . . Installed . | . . . . Triggered . | . . . . Machines | -11 -10 -10 -10 ---------- Run | Yrd Mat Min Sub Machines Disabled 3 | . 3 . . Max in Single Turn 1 | . 1 . . Machines Repaired . | . . . . Machines Dismantled . | . . . . Machines Sabotaged . | . . . . Overloaded Fab Kills . | . . . . Hacking | -11 -10 -10 -10 --------- Run | Yrd Mat Min Sub Machines Accessed 6 | . 6 . . Terminals 4 | . 4 . . Fabricators . | . . . . Repair Stations 1 | . 1 . . Recycling Units 1 | . 1 . . Scanalyzers . | . . . . Garrison Access . | . . . . Total Hacks 16 | . 16 . . Successful 11 | . 11 . . Failed 5 | . 5 . . Catastrophic . | . . . . Database Lockouts . | . . . . Manual 12 | . 12 . . Terminals 11 | . 11 . . Fabricators . | . . . . Repair Stations 3 | . 3 . . Recycling Units 2 | . 2 . . Scanalyzers . | . . . . Garrison Access . | . . . . Terminal Hacks 3 | . 3 . . Alert Level 2 | . 2 . . Zone Layout 1 | . 1 . . Fabricator Hacks . | . . . . Repair Station Hacks 2 | . 2 . . Scan Component 1 | . 1 . . Repair 1 | . 1 . . Recycling Unit Hacks 1 | . 1 . . Report Inventory 1 | . 1 . . Scanalyzer . | . . . . Garrison Access Hacks . | . . . . Unauthorized Hacks 5 | . 5 . . Terminals 3 | . 3 . . Botnet 3 | . 3 . . Fabricators . | . . . . Repair Stations 1 | . 1 . . Patch 1 | . 1 . . Recycling Units 1 | . 1 . . Monitor 1 | . 1 . . Scanalyzers . | . . . . Garrison Access . | . . . . Data Cores Recovered . | . . . . Used . | . . . . Hacking Detections 3 | . 3 . . Full Trace Events . | . . . . Feedback Events . | . . . . Feedback Blocked . | . . . . Robot Schematics Acquired . | . . . . Robots Built . | . . . . Authchips . | . . . . Time . | . . . . Total Robot Build Rating . | . . . . Part Schematics Acquired . | . . . . Parts Built . | . . . . Authchips . | . . . . Time . | . . . . Total Part Build Rating . | . . . . Parts Repaired . | . . . . Time 26 | . 26 . . Parts Recycled . | . . . . Recycled Matter . | . . . . Retrieved Matter . | . . . . Retrieved Components . | . . . . Parts Scanalyzed . | . . . . Part Schematics Acquired . | . . . . Parts Damaged . | . . . . Bothacking | -11 -10 -10 -10 ------------ Run | Yrd Mat Min Sub Used RIF Installer . | . . . . Robots Hacked . | . . . . Non-combat . | . . . . Combat . | . . . . Robot Hacks Applied . | . . . . Relay Couplers Released . | . . . . Fabnet Peak Effective % . | . . . . Robots Rewired . | . . . . Allies Hacked . | . . . . Hacks Repelled . | . . . . Allies | -11 -10 -10 -10 -------- Run | Yrd Mat Min Sub Total Allies . | . . . . Largest Group . | . . . . Highest-Rated Group . | . . . . Highest-Rated Ally . | . . . . Total Orders . | . . . . Ally Attacks . | . . . . Total Damage . | . . . . Kills . | . . . . Allies Corrupted . | . . . . Allies Melted . | . . . . Intel | -11 -10 -10 -10 ------- Run | Yrd Mat Min Sub Active Infowar (turns) 631 | 71 560 . . Seismic 631 | 71 560 . . Robot Analysis Total . | . . . . Derelict Logs Recovered 1 | . . 1 . Drone Launches . | . . . . Drone Recoveries . | . . . . Exploration | -11 -10 -10 -10 ------------- Run | Yrd Mat Min Sub Turns Passed 3773 | 134 1606 1115 918 Spaces Moved 1997 | 68 750 649 530 Core 7 | 7 . . . Treads 1990 | 61 750 649 530 Legs . | . . . . Wheels . | . . . . Hover . | . . . . Flight . | . . . . Fastest Speed 50 | 50 160 160 160 Average Speed 159 | 148 160 160 160 Slowest Speed 160 | 160 160 160 160 Overloaded Moves . | . . . . Propulsion Burnouts . | . . . . Robots Hopped . | . . . . Potential Cave-ins 6 | . . . 6 Cave-ins Triggered 1 | . . . 1 Exploration Rate (%) 45 | 5 75 84 16 Regions Visited 3 Branch Regions 2 Pre-discovered Areas 1 | . . 1 . Known Exits Taken . | . . . . Unknown Exits Taken 3 | 1 1 1 . Scrap Searched 3 | . . 1 2 Spaces Dug 11 | . . . 11 Terrain Destroyed 205 | . . 37 168 Melee . | . . . . Projectile . | . . . . AOE 205 | . . 37 168 Terrain Rammed . | . . . . Walls Destroyed . | . . . . Machines Disabled . | . . . . Actions | -11 -10 -10 -10 --------- Run | Yrd Mat Min Sub Total 2411 | 84 1052 703 572 Wait 241 | . 228 13 . Move 1994 | 67 749 648 530 Hop . | . . . . Pick Up 25 | 3 9 7 6 Fast Attach 8 | 7 . . 1 Attach 3 | . 1 2 . Detach 1 | . . 1 . Swap 12 | . 6 2 4 Drop 23 | . 6 8 9 Fire 99 | 7 53 17 22 Melee . | . . . . Ram . | . . . . Kick . | . . . . Crush 5 | . . 5 . Escape Stasis . | . . . . Rewire . | . . . . Trap . | . . . . Miscellaneous . | . . . . Route ------- -11/Scrapyard -10/Materials (discovered 4 exits: [*Mat x3] / [*Min]) -10/Mines (discovered 3 exits: [*Mat x2] / [*Sub]) -10/Subcaves History --------- Turn | Location | Event 25 | -11/Scrapyard | Discovered new exit (range 16) 135 | -11/Scrapyard | Entered Materials 307 | -10/Materials | Build established: Mutant 594 | -10/Materials | Discovered new exit (range 4) 742 | -10/Materials | Discovered new exit (range 15) 794 | -10/Materials | Discovered new exit (range 16) 1224 | -10/Materials | Discovered new exit (range 16) 1741 | -10/Materials | Entered Mines 1748 | -10/Mines | Received a Rocket Launcher from a helpful Derelict 1882 | -10/Mines | Discovered new exit (range 13) 2078 | -10/Mines | Learned location of Storage (-9) 2085 | -10/Mines | Discovered new exit (range 12) 2779 | -10/Mines | Core integrity fell below 50% 2837 | -10/Mines | Discovered new exit (range 9) 2856 | -10/Mines | Entered Subcaves 3180 | -10/Subcaves | Ambushed by Subdweller buried in earth 3507 | -10/Subcaves | A Subdweller sparked back to life 3507 | -10/Subcaves | A Subdweller sparked back to life 3517 | -10/Subcaves | Core integrity fell below 20% 3677 | -10/Subcaves | A swath of the cavern ceiling suddenly collapsed 3756 | -10/Subcaves | Ambushed by Subdweller buried in earth 3761 | -10/Subcaves | Ambushed by Subdweller buried in earth 3762 | -10/Subcaves | Crushed by falling debris 3774 | -10/Subcaves | Destroyed by JB-737(R) with Subdweller Beam Cannon Last Messages --------------- 03548_ The unstable cave ceiling collapses. 03605_ Acquired 14 matter. A swath of the cavern ceiling suddenly collapses. 03711_ D2-KT6(R) destroyed. 03757_ JB-737(R): "HIDIE!" 03761_ JB-737(R) suffers critical hit (Destroy). 03762_ AH-36O(R): "HIDIE!" 03762_ R5-IWW(R): "FREEEEDUMB!" 03762_ The unstable cave ceiling collapses. 03762_ Crushed by falling debris. 03762_ Battle Rifle destroyed. 03762_ System corrupted by crushing effect (+5). 03762_ Sub. Power Source destroyed. 03762_ System corrupted by crushing effect (+3). 03762_ Rocket Launcher destroyed. 03770_ System corrupted: Matter fused (-6). 03773_ AH-36O(R) affixes Scrap Shield Fragment to Scrap Shield. 03774_ Lgt. Treads destroyed. Map ----- +----------------------------------------------------+ | ?????????????????????????????????????????????????? | | ?????????????????????????????????????????????????? | | ?????????????????????????????????????????????????? | | ?????????????????????????????????????????????????? | | ?????????????????????????????????????????????????? | | ???????????????????????????????????####?????###### | | ??????????????????????????"???????## ##????# # | | ?????????????????????????#"" ?????# ####### | | ?????????????????????????#"""#####?# # | | ????????????????????######""## ### | | ???????????????????##"""" # # ### | | ????????????????#### " " ####?## | | ???????????????## "" """ " ######### | | ??????????????##""" "##"" & %= ## | | ?????????????##" """" ## ! # | | ?????????????# " #### RR !* ## | | ??????????????## ##?# R !%& ##? | | ??????????????# " #### & & # | | ??????????????# ## ### # ## | | ??????????????##" ### ### # ## | | ??????????????# ""# ## ### ### # | | ??????????????## ## ## #### | | ??????????????## ###### ## ## | | ??????????????####"#### ;## ## ## | | ???????????????#"#;#;;; ###### ### ## | | ???????????????##;;;; ; @ ##????# ##?## | | ??????????????#""##;### #????? ##??## # | | ??????????????##"####### #????? #??## # | | ?????????????? ??????## #????####??# # | | ?????????????##"????????# #??????????# ## | | ??????????????#?????????### ##??????????# ## | | ??????????????????????????####??????????## ### | | ????????????????????????????????????????# #?# | | ????????????????????????????????????????######## | | ??????????????????????????????????????????????# | | ??????????????????????????????????????????????### | | ????????????????????????????????????????????????## | | ????????????????????????????????????????????????## | | ????????????????????????????????????????????????# | | ????????????????????????????????????????????????## | | ???????????????????????????????????????????????## | | ???????????????????????????????????????????????# | | ???????????????????????????????????????????????# | | ???????????????????????????????????????????????# | | ???????????????????????????????????????????????# | | ???????????????????????????????????????????????# | | ??????????????????????????????????????????????## | | ?????????????????????????????????????????????##" | | ????????????????#####???????????????########## " | | ???????????????## ######?????####?# # | +----------------------------------------------------+ Best States ------------- Heat Dissipation 25 Energy Generation 15 Energy Capacity 250 Matter Stores 300 Matter Capacity 300 Sight Range 16 Terrain Scan Density 10 Evasion (%) 40 Targeting Accuracy 5 Recoil Reduction 2 Item Schematics ----------------- None Robot Schematics ------------------ None Fabricated ------------ Nothing Repaired ---------- Nothing Alien Tech Used ----------------- None Achievements -------------- Brute Force Challenges ------------ None Game ------ Seed VampiricSniperEdition Manual? 0 Play Time 00:27:09 Cumulative 22.1 hours Start 2025.05.19 @ 09:23:23 End 2025.05.19 @ 09:59:13 Sessions 1 Manual Loads 0 Difficulty Rogue Special Mode None Game No. 29 Rogue 29 Adventurer 0 Explorer 0 Win Type - Total 0 Types 0/0/0/0/0/0/0/0/0/0 Lore% 27 Gallery% 19 Achievement% 20 Wizard Run 0 Options --------- Layout 1 ASCII 0 Keyboard 1 Movement Vi Keybinds 0 Fullscreen 1 Font 24/Smallcaps Map View 50x35 Zoom Use 0% Tactical HUD 1 Map Filters NONE Filters NONE Steam 1 RUN: 1003bca8-a6b9-4b9b-99ab-4d89e7217d61